bitfinex/quotes_SOLUSD_20240818
["timestamp","ask_amount","ask_price","bid_price","bid_amount"]
[1723965790998,6.4212,141.98,141.95,6.21468069]
[1723965791318,6.4212,141.98,141.93,9.35]
[1723965791622,6.4212,141.98,141.94,6.21448675]
[1723965791822,6.4212,141.98,141.95,6.21448675]
[1723965792016,6.4212,141.98,141.96,6.21448675]
[1723965792348,6.4212,141.98,141.93,9.35]
[1723965792524,16.1661,142.0,141.95,9.35]
[1723965792714,16.1661,142.0,141.96,6.21334346]
[1723965792910,16.1661,142.0,141.95,9.35]
[1723965793224,16.1661,142.0,141.96,6.21333928]
[1723965793426,16.1661,142.0,141.95,9.35]
[1723965793600,16.1661,142.0,141.96,6.21342151]
[1723965793801,16.1661,142.0,141.95,9.35]
[1723965794002,16.1661,142.0,141.96,6.21341911]
[1723965794211,16.1661,142.0,141.95,9.35]
[1723965794427,16.1661,142.0,141.96,6.21335494]
[1723965794634,16.1661,142.0,141.95,9.35]
[1723965794817,16.1661,142.0,141.96,6.21404695]
[1723965795125,16.1661,142.0,141.95,9.35]
[1723965795431,16.1661,142.0,141.96,6.21404777]
[1723965795615,16.1661,142.0,141.95,9.35]
[1723965795820,16.1661,142.0,141.96,6.21404777]
[1723965796127,16.1661,142.0,141.95,9.35]
[1723965796332,16.1661,142.0,141.96,6.21405017]
[1723965796514,16.1661,142.0,141.93,9.35]
[1723965796720,16.1661,142.0,141.95,9.35]
[1723965796910,16.1661,142.0,141.96,6.21407142]
[1723965797111,16.1661,142.0,141.95,9.35]
[1723965797430,16.1661,142.0,141.96,6.21404695]
[1723965797629,16.1661,142.0,141.95,9.35]
[1723965797840,16.1661,142.0,141.96,6.21404777]
[1723965798011,16.1661,142.0,141.95,9.35]
[1723965798212,16.1661,142.0,141.96,6.21403955]
[1723965798412,16.1661,142.0,141.95,9.35]
[1723965798610,16.1661,142.0,141.96,6.21404777]
[1723965798818,16.1661,142.0,141.95,9.35]
[1723965799027,16.1661,142.0,141.96,6.21405017]
[1723965799211,16.1661,142.0,141.95,9.35]
[1723965799413,16.1661,142.0,141.96,6.21405799]
[1723965799634,16.1661,142.0,141.95,9.35]
[1723965799862,16.1661,142.0,141.96,6.21405799]
[1723965800145,16.1661,142.0,141.95,9.35]
[1723965800324,16.1661,142.0,141.96,6.21394664]
[1723965800526,16.1661,142.0,141.92,0.12549]
[1723965800837,16.1661,142.0,141.93,15.56397852]
[1723965801140,16.1661,142.0,141.94,6.21397852]
[1723965801343,16.1661,142.0,141.95,6.21397852]
[1723965801523,16.1661,142.0,141.96,6.21397852]
[1723965801726,16.1661,142.0,141.93,9.35]
[1723965801928,16.1661,142.0,141.94,6.21406882]
[1723965802127,16.1661,142.0,141.95,6.21406882]
[1723965802322,16.1661,142.0,141.96,6.21406882]
[1723965802527,16.1661,142.0,141.93,9.35]
[1723965802845,16.1661,142.0,141.94,6.21407602]
[1723965803048,16.1661,142.0,141.95,6.21407602]
[1723965803216,16.1661,142.0,141.96,6.21407602]
[1723965803541,16.1661,142.0,141.93,9.35]
[1723965803745,16.1661,142.0,141.94,6.21406882]
[1723965803943,16.1661,142.0,141.95,6.21406882]
[1723965804147,16.1661,142.0,141.96,6.21406882]
[1723965804346,16.1661,142.0,141.95,9.35]
[1723965804647,16.1661,142.0,141.96,6.21396409]
[1723965804937,16.1661,142.0,141.95,9.35]
[1723965805122,16.1661,142.0,141.96,6.21409713]
[1723965805440,16.1661,142.0,141.95,9.35]
[1723965805614,16.1661,142.0,141.96,6.21410773]
[1723965805817,16.1661,142.0,141.95,9.35]
[1723965806010,16.1661,142.0,141.96,6.21342933]
[1723965806215,16.1661,142.0,141.91,45.37647]
[1723965806417,16.1661,142.0,141.92,26.21345543]
[1723965806635,16.1661,142.0,141.93,15.56345543]
[1723965806843,16.1661,142.0,141.94,6.21345543]
[1723965807136,16.1661,142.0,141.95,6.21345543]
[1723965807357,16.1661,142.0,141.93,9.35]
[1723965807524,16.1661,142.0,141.94,6.21447923]
[1723965807836,16.1661,142.0,141.95,6.21447923]
[1723965808039,16.1661,142.0,141.93,9.35]
[1723965808226,16.1661,142.0,141.94,6.21449228]
[1723965808422,16.1661,142.0,141.95,6.21449228]
[1723965808744,16.1661,142.0,141.93,9.35]
[1723965809116,16.1661,142.0,141.94,6.21452357]
[1723965809444,16.1661,142.0,141.95,6.21450023]
[1723965809617,16.1661,142.0,141.93,9.35]
[1723965809941,16.1661,142.0,141.94,6.21451426]
[1723965810151,16.1661,142.0,141.95,6.21451426]
[1723965810152,25.5161,142.0,141.95,6.21451426]
[1723965810329,25.5161,142.0,141.92,20.0]
[1723965810330,6.4712,141.99,141.93,6.21574133]
[1723965810646,6.4712,141.99,141.94,6.21574133]
[1723965810847,6.4712,141.99,141.95,6.21574133]
[1723965811016,6.4712,141.99,141.92,20.0]
[1723965811216,6.4712,141.99,141.93,15.56493345]
[1723965811416,6.4712,141.99,141.94,6.21493345]
[1723965811628,6.4712,141.99,141.95,6.21493345]
[1723965811844,6.4712,141.99,141.93,9.35]
[1723965812055,6.4712,141.99,141.95,9.35]
[1723965812243,6.4712,141.99,141.96,6.21489444]
[1723965812541,6.4712,141.99,141.95,9.35]
[1723965812751,6.4712,141.99,141.96,6.21379723]
[1723965812930,6.4712,141.99,141.95,9.35]
[1723965813243,6.4712,141.99,141.96,6.21359252]
[1723965813543,6.4712,141.99,141.95,9.35]
[1723965813723,6.4712,141.99,141.96,6.21329157]
[1723965814043,6.4712,141.99,141.95,9.35]
[1723965814240,6.4712,141.99,141.96,6.21276777]
[1723965814543,6.4712,141.99,141.95,9.35]
[1723965814744,6.4712,141.99,141.96,6.21284593]
[1723965815033,6.4712,141.99,141.95,9.35]
[1723965815243,6.4712,141.99,141.96,6.21284595]
[1723965815424,6.4712,141.99,141.95,9.35]
[1723965815631,6.4712,141.99,141.96,6.21286236]
[1723965815829,6.4712,141.99,141.95,9.35]
[1723965816020,6.4712,141.99,141.96,6.21290189]
[1723965816225,6.4712,141.99,141.95,9.35]
[1723965816432,6.4712,141.99,141.96,6.21291007]
[1723965816628,6.4712,141.99,141.95,9.35]
[1723965816827,6.4712,141.99,141.96,6.21287457]
[1723965817038,6.4712,141.99,141.95,9.35]
[1723965817239,6.4712,141.99,141.96,6.21289098]
[1723965817444,6.4712,141.99,141.95,9.35]
[1723965817743,6.4712,141.99,141.96,6.21284715]
[1723965818044,6.4712,141.99,141.95,9.35]
[1723965818245,6.4712,141.99,141.96,6.21397122]
[1723965818543,6.4712,141.99,141.95,9.35]
[1723965818750,6.4712,141.99,141.96,6.21398763]
[1723965819051,6.4712,141.99,141.95,9.35]
[1723965819224,6.4712,141.99,141.96,6.21430527]
[1723965819558,6.4712,141.99,141.95,9.35]
[1723965819743,6.4712,141.99,141.93,9.47549]
[1723965819926,6.4712,141.99,141.94,6.21534312]
[1723965820250,6.4712,141.99,141.95,6.21534312]
[1723965820546,6.4712,141.99,141.96,6.21534312]
[1723965820728,6.4712,141.99,141.93,6.21533596]
[1723965821043,6.4712,141.99,141.92,29.35]
[1723965821044,6.4712,141.99,141.94,6.21533596]
[1723965821227,6.4712,141.99,141.95,6.21533596]
[1723965821430,6.4712,141.99,141.92,29.35]
[1723965822062,6.4712,141.99,141.93,6.216051]
[1723965822230,6.4712,141.99,141.94,6.216051]
[1723965822430,6.4712,141.99,141.95,6.216051]
[1723965822736,6.4712,141.99,141.92,29.35]
[1723965822938,6.4712,141.99,141.93,6.2161484]
[1723965823240,6.4712,141.99,141.94,6.2161484]
[1723965823431,6.4712,141.99,141.95,6.2161484]
[1723965823638,6.4712,141.99,141.92,29.35]
[1723965823843,6.4712,141.99,141.93,6.21628437]
[1723965824146,6.4712,141.99,141.94,6.21628437]
[1723965824346,6.4712,141.99,141.95,6.21628437]
[1723965824552,6.4712,141.99,141.92,29.35]
[1723965824743,6.4712,141.99,141.93,6.21586344]
[1723965824946,6.4712,141.99,141.94,6.21586344]
[1723965825142,6.4712,141.99,141.95,6.21586344]
[1723965825344,6.4712,141.99,141.92,29.35]
[1723965825545,6.4712,141.99,141.93,6.2165402]
[1723965825726,6.4712,141.99,141.92,29.35]
[1723965825727,6.4712,141.99,141.94,6.2165402]
[1723965825931,6.4712,141.99,141.92,9.35]
[1723965826151,6.4712,141.99,141.93,6.21783741]
[1723965826335,6.4712,141.99,141.94,6.21783741]
[1723965826551,6.4712,141.99,141.92,9.35]
[1723965826737,6.4712,141.99,141.93,6.21780467]
[1723965827039,6.4712,141.99,141.94,6.21780467]
[1723965827237,6.4712,141.99,141.92,9.35]
[1723965827440,6.4712,141.99,141.93,6.21779986]
[1723965827761,6.4712,141.99,141.94,6.21779986]
[1723965827953,6.4712,141.99,141.92,9.35]
[1723965828160,6.4712,141.99,141.93,6.2177752]
[1723965828329,6.4712,141.99,141.92,9.35]
[1723965828330,6.4712,141.99,141.94,6.2177752]
[1723965828530,6.4712,141.99,141.92,9.35]
[1723965828741,6.4712,141.99,141.93,6.21784756]
[1723965829031,6.4712,141.99,141.94,6.21784756]
[1723965829227,6.4712,141.99,141.92,9.35]
[1723965829426,6.4712,141.99,141.93,6.21780514]
[1723965829655,6.4712,141.99,141.94,6.21780514]
[1723965829968,6.4712,141.99,141.92,9.35]
[1723965830158,6.4712,141.99,141.93,6.21781335]
[1723965830462,6.4712,141.99,141.94,6.21781335]
[1723965830756,6.4712,141.99,141.92,9.35]
[1723965831064,6.4712,141.99,141.93,6.21780854]
[1723965831249,6.4712,141.99,141.92,9.35]
[1723965831250,6.4712,141.99,141.94,6.21780854]
[1723965831432,6.4712,141.99,141.92,9.35]
[1723965831633,6.4712,141.99,141.93,6.21780854]
[1723965831851,6.4712,141.99,141.94,6.21780854]
[1723965832032,6.4712,141.99,141.92,9.35]
[1723965832233,6.4712,141.99,141.93,6.21762131]
[1723965832574,6.4712,141.99,141.94,6.21762131]
[1723965832730,6.4712,141.99,141.95,6.21762131]
[1723965833065,6.4712,141.99,141.92,9.35]
[1723965833361,7.0435,141.98,141.93,6.2167325]
[1723965833553,7.16899,141.98,141.9,9.35]
[1723965833766,7.16899,141.98,141.91,6.21933599]
[1723965833967,7.16899,141.98,141.9,9.35]
[1723965833968,7.16899,141.98,141.92,6.21933599]
[1723965834155,7.16899,141.98,141.93,6.21933599]
[1723965834353,7.16899,141.98,141.9,9.35]
[1723965834568,7.16899,141.98,141.91,6.21884808]
[1723965834746,7.16899,141.98,141.92,6.21884808]
[1723965834946,7.16899,141.98,141.93,6.21884808]
[1723965835154,7.16899,141.98,141.9,9.35]
[1723965835473,7.16899,141.98,141.91,6.21909931]
[1723965835672,7.16899,141.98,141.92,6.21909931]
[1723965835982,7.16899,141.98,141.93,6.21888855]
[1723965836148,7.16899,141.98,141.94,6.21888855]
[1723965836347,7.16899,141.98,141.9,9.35]
[1723965836549,7.16899,141.98,141.91,6.21889199]
[1723965836764,7.16899,141.98,141.9,9.35]
[1723965836765,7.16899,141.98,141.92,6.21889199]
[1723965836971,7.16899,141.98,141.93,6.21889199]
[1723965837169,7.16899,141.98,141.9,9.35]
[1723965837403,7.16899,141.98,141.91,6.2189585]
[1723965837576,7.16899,141.98,141.92,6.2189585]
[1723965837753,7.16899,141.98,141.93,6.2189585]
[1723965837960,7.16899,141.98,141.9,9.35]
[1723965838157,22.8641,141.99,141.92,9.35]
[1723965838471,13.5141,141.99,141.93,6.21890905]
[1723965838646,9.35,141.97,141.94,6.21890905]
[1723965838850,15.1533,141.94,141.88,6.21890905]
[1723965839051,7.0457,141.93,141.89,6.21890905]
[1723965839270,22.1986,141.94,141.84,15.6693]
[1723965839454,22.1986,141.94,141.85,15.57409324]
[1723965839650,22.1986,141.94,141.86,6.22409324]
[1723965839861,22.1986,141.94,141.87,6.22409324]
[1723965840054,22.1986,141.94,141.88,6.22409324]
[1723965840370,22.1986,141.94,141.89,6.22409324]
[1723965840577,22.1986,141.94,141.85,9.35]
[1723965840774,22.1986,141.94,141.86,6.22527126]
[1723965841076,22.1986,141.94,141.87,6.22527126]
[1723965841286,15.7628,141.92,141.86,6.2280059]
[1723965841569,7.17229,141.91,141.83,6.2282523]
[1723965841755,7.17229,141.91,141.84,6.2282523]
[1723965841958,7.17229,141.91,141.82,0.8506414]
[1723965841959,7.17229,141.91,141.85,6.2282523]
[1723965842166,7.17229,141.91,141.83,6.2282523]
[1723965842483,7.17229,141.91,141.83,15.5782523]
[1723965843254,7.17229,141.91,141.83,9.35]
[1723965851174,7.17229,141.91,141.82,0.8506414]
[1723965851386,7.17229,141.91,141.82,75.2006414]
[1723965852162,15.44,141.9,141.82,75.2006414]
[1723965854281,15.44,141.9,141.82,0.8506414]
[1723965854282,9.47549,141.88,141.82,0.8506414]
[1723965854590,7.0502,141.84,141.82,0.8506414]
[1723965859370,7.17529,141.85,141.82,0.8506414]
[1723965859575,0.12549,141.84,141.82,0.8506414]
[1723965860683,0.12549,141.84,141.73,7.36770405]
[1723965860684,22.15779,141.83,141.73,7.36770405]
[1723965860883,22.15779,141.83,141.73,16.71770405]
[1723965860884,9.35,141.82,141.73,16.71770405]
[1723965861089,0.12549,141.81,141.73,9.35]
[1723965861287,7.17749,141.81,141.73,9.35]
[1723965862162,9.47549,141.82,141.73,9.35]
[1723965862163,16.52679,141.82,141.73,9.35]
[1723965862361,16.52679,141.82,141.72,0.12549]
[1723965862362,7.17679,141.82,141.72,0.12549]
[1723965862567,7.17679,141.82,141.72,20.25098]
[1723965863367,7.17679,141.82,141.75,9.35]
[1723965864587,7.17679,141.82,141.72,20.25098]
[1723965864769,7.17679,141.82,141.74,9.35]
[1723965869869,7.17679,141.82,141.73,45.0]
[1723965870084,7.17679,141.82,141.74,9.35]
[1723965871382,22.15779,141.83,141.76,9.35]
[1723965871579,22.0323,141.83,141.76,9.35]
[1723965872385,22.0323,141.83,141.78,9.35]
[1723965883208,22.0323,141.83,141.8,9.35]
[1723965884010,6.1165,141.86,141.8,9.35]
[1723965887904,6.1165,141.86,141.82,9.35]
[1723965888314,30.0407,141.91,141.84,9.35]
[1723965888512,22.9937,141.91,141.84,9.35]
[1723965894236,22.9937,141.91,141.86,9.35]
[1723965894606,6.3878,141.91,141.86,9.35]
[1723965899128,6.3878,141.91,141.84,9.35]
[1723965899319,6.3878,141.91,141.85,20.0]
[1723965899625,6.3878,141.91,141.82,9.35]
[1723965899822,6.3878,141.91,141.83,20.0]
[1723965908926,25.89989,141.9,141.8,15.2851]
[1723965909125,7.0481,141.89,141.8,24.6351]
[1723965909325,0.12549,141.88,141.8,9.35]
[1723965911144,7.0481,141.89,141.78,12.45886283]
[1723965911145,33.07268,141.9,141.82,9.35]
[1723965911446,0.12549,141.89,141.82,9.35]
[1723965913933,16.54989,141.9,141.82,9.35]
[1723965921057,16.4244,141.9,141.84,9.35]
[1723965921653,16.4244,141.9,141.86,9.35]
[1723965924553,6.3878,141.91,141.86,9.35]
[1723965924753,6.3878,141.91,141.88,9.35]
[1723965925544,15.1702,141.93,141.88,9.35]
[1723965940565,6.5251,141.95,141.9,9.35]
[1723965940874,6.5251,141.95,141.92,9.35]
[1723965942559,15.2618,141.97,141.92,9.35]
[1723965945384,15.2618,141.97,141.91,9.35]
[1723965951288,15.2618,141.97,141.93,9.35]
[1723965952678,6.1329,141.98,141.93,9.35]
[1723965956101,15.2476,142.01,141.95,9.35]
[1723965965881,15.2476,142.01,141.92,0.12549]
[1723965966091,15.2476,142.01,141.94,9.35]
[1723965967401,24.5976,142.01,141.92,35.56758578]
[1723965967597,24.5976,142.01,141.92,29.35]
[1723965968496,15.2476,142.01,141.94,9.35]
[1723965970375,24.5976,142.01,141.94,9.35]
[1723965970575,9.35,141.99,141.92,26.21723507]
[1723965970888,6.2738,141.98,141.91,9.35]
[1723965971978,6.2738,141.98,141.93,9.35]
[1723965973707,6.2738,141.98,141.91,9.35]
[1723965974300,6.2738,141.98,141.91,15.56723507]
[1723965976088,15.3978,141.97,141.9,6.21723507]
[1723965976403,15.3978,141.97,141.89,6.21723507]
[1723965976606,31.7915,141.97,141.89,15.56723507]
[1723965976808,31.7915,141.97,141.89,9.35]
[1723965977102,31.7915,141.97,141.89,15.56723507]
[1723965977405,31.7915,141.97,141.89,9.35]
[1723965978210,31.7915,141.97,141.89,15.57221886]
[1723965978509,31.7915,141.97,141.89,9.35]
[1723965979388,31.7915,141.97,141.89,15.57221886]
[1723965979683,31.7915,141.97,141.89,9.35]
[1723965980304,31.7915,141.97,141.89,15.57221886]
[1723965980508,31.7915,141.97,141.9,6.22221886]
[1723965982208,31.7915,141.97,141.9,6.222902]
[1723965985913,31.7915,141.97,141.89,9.35]
[1723965986091,15.3978,141.94,141.9,6.22331509]
[1723965986295,15.3978,141.94,141.86,6.22556926]
[1723965986296,15.73517,141.93,141.86,6.22556926]
[1723965986500,15.73517,141.93,141.87,6.22556926]
[1723965986800,15.73517,141.93,141.88,6.22556926]
[1723965987002,15.73517,141.93,141.86,6.22556926]
[1723965987312,15.73517,141.93,141.87,6.22556926]
[1723965987613,15.73517,141.93,141.86,6.22556926]
[1723965987805,15.73517,141.93,141.87,6.22556926]
[1723965988008,15.73517,141.93,141.86,6.22556926]
[1723965988312,15.73517,141.93,141.87,6.22556926]
[1723965988518,15.73517,141.93,141.86,6.22556926]
[1723965988695,15.73517,141.93,141.87,6.22556926]
[1723965988894,15.73517,141.93,141.86,6.22556926]
[1723965990922,15.73517,141.93,141.86,6.22711187]
[1723965994800,6.25968,141.93,141.86,6.22711187]
[1723965997423,0.12549,141.92,141.86,6.22711187]
[1723965997917,0.12549,141.92,141.85,9.35]
[1723966008339,6.0087,141.93,141.85,9.35]
[1723966008540,6.0087,141.93,141.87,9.35]
[1723966010426,6.4681,141.97,141.85,21.791]
[1723966010627,6.4681,141.97,141.91,9.35]
[1723966010809,6.4681,141.97,141.86,65.25098]
[1723966010810,13.5118,141.97,141.86,65.25098]
[1723966011125,13.5118,141.97,141.86,65.12549]
[1723966011806,0.37647,141.96,141.87,6.22716757]
[1723966012008,0.37647,141.96,141.89,9.35]
[1723966015134,0.12549,141.95,141.86,20.0]
[1723966015837,9.47549,141.95,141.86,20.0]
[1723966016128,0.25098,141.94,141.86,20.0]
[1723966016433,16.2274,141.93,141.86,20.0]
[1723966018021,16.2274,141.93,141.87,6.22734207]
[1723966018330,16.2274,141.93,141.88,6.22730839]
[1723966018631,16.2274,141.93,141.89,6.22730839]
[1723966018933,16.2274,141.93,141.87,6.22730839]
[1723966019120,16.2274,141.93,141.88,6.22730839]
[1723966019318,16.2274,141.93,141.89,6.22730839]
[1723966019630,16.2274,141.93,141.87,6.22730839]
[1723966019631,9.35,141.91,141.87,6.22730839]
[1723966019812,9.35,141.91,141.88,6.22730839]
[1723966020012,9.35,141.91,141.83,6.22730839]
[1723966020224,9.35,141.91,141.84,6.22730839]
[1723966020428,9.35,141.91,141.85,6.22730839]
[1723966020625,9.35,141.91,141.86,6.22730839]
[1723966020824,6.51549,141.92,141.87,6.22730839]
[1723966021019,0.12549,141.91,141.84,9.35]
[1723966021219,0.12549,141.91,141.85,6.2302097]
[1723966021534,0.12549,141.91,141.86,6.2302097]
[1723966021711,0.12549,141.91,141.87,6.23021452]
[1723966021910,0.12549,141.91,141.88,6.23021452]
[1723966022114,0.12549,141.91,141.85,6.23021452]
[1723966022327,0.12549,141.91,141.86,6.23021452]
[1723966022524,0.12549,141.91,141.87,6.23021452]
[1723966022739,6.39,141.92,141.88,6.23021452]
[1723966022926,6.39,141.92,141.89,6.23021452]
[1723966023237,6.39,141.92,141.86,9.35]
[1723966023438,6.39,141.92,141.87,6.22959121]
[1723966023614,6.39,141.92,141.88,6.22959121]
[1723966023816,22.6174,141.96,141.9,9.35]
[1723966024011,39.0117,141.96,141.88,9.35]
[1723966024231,39.0117,141.96,141.89,6.22917126]
[1723966024436,39.0117,141.96,141.9,6.22917126]
[1723966024641,39.0117,141.96,141.91,6.22917126]
[1723966024822,39.0117,141.96,141.89,6.22917126]
[1723966025141,39.0117,141.96,141.9,6.22917126]
[1723966025337,45.50196,141.95,141.88,9.35]
[1723966025542,45.50196,141.95,141.89,6.22924486]
[1723966025743,45.50196,141.95,141.9,6.22924486]
[1723966025944,45.50196,141.95,141.88,9.35]
[1723966026141,0.50196,141.95,141.89,6.22925208]
[1723966026323,0.50196,141.95,141.88,9.35]
[1723966026324,0.25098,141.95,141.9,6.22925208]
[1723966026524,0.25098,141.95,141.91,6.22925208]
[1723966026720,0.25098,141.95,141.88,9.35]
[1723966026942,0.25098,141.95,141.89,6.22893197]
[1723966027249,0.25098,141.95,141.9,6.22893197]
[1723966027448,0.25098,141.95,141.91,6.22893197]
[1723966027649,0.25098,141.95,141.88,9.35]
[1723966027819,0.25098,141.95,141.89,6.22917926]
[1723966028024,0.25098,141.95,141.9,6.22917926]
[1723966028237,0.25098,141.95,141.91,6.22917926]
[1723966028438,0.25098,141.95,141.88,9.35]
[1723966028738,0.25098,141.95,141.89,6.22906034]
[1723966028945,0.25098,141.95,141.9,6.22906515]
[1723966029126,0.25098,141.95,141.91,6.22906515]
[1723966029322,0.25098,141.95,141.88,9.35]
[1723966029624,0.25098,141.95,141.89,6.2287498]
[1723966029824,0.25098,141.95,141.9,6.2287498]
[1723966030149,0.25098,141.95,141.91,6.2287498]
[1723966030446,0.25098,141.95,141.88,9.35]
[1723966030650,0.25098,141.95,141.89,6.22874133]
[1723966030848,0.25098,141.95,141.9,6.22874133]
[1723966031148,0.25098,141.95,141.91,6.22874133]
[1723966031447,0.25098,141.95,141.88,9.35]
[1723966031761,0.25098,141.95,141.89,6.228653]
[1723966032061,0.25098,141.95,141.9,6.228653]
[1723966032230,0.25098,141.95,141.91,6.228653]
[1723966032553,0.25098,141.95,141.88,9.35]
[1723966032729,0.25098,141.95,141.89,6.22892432]
[1723966032935,0.25098,141.95,141.88,9.35]
[1723966033234,0.25098,141.95,141.89,6.22891459]
[1723966033435,0.25098,141.95,141.88,9.35]
[1723966033750,0.25098,141.95,141.89,6.22899801]
[1723966033937,0.25098,141.95,141.9,6.22906324]
[1723966034137,0.25098,141.95,141.91,6.22906324]
[1723966034341,0.25098,141.95,141.88,9.35]
[1723966034652,0.25098,141.95,141.89,6.22906564]
[1723966034852,0.25098,141.95,141.9,6.22906564]
[1723966035031,0.25098,141.95,141.91,6.22906564]
[1723966035229,0.25098,141.95,141.88,9.35]
[1723966035444,0.25098,141.95,141.89,6.22905842]
[1723966035627,0.25098,141.95,141.9,6.22905842]
[1723966035949,0.25098,141.95,141.91,6.22905842]
[1723966036144,0.25098,141.95,141.88,9.35]
[1723966036332,0.25098,141.95,141.89,6.22905842]
[1723966036533,0.25098,141.95,141.9,6.22905842]
[1723966036746,0.25098,141.95,141.91,6.22905842]
[1723966037058,0.25098,141.95,141.88,9.35]
[1723966037241,0.25098,141.95,141.89,6.22905842]
[1723966037440,0.25098,141.95,141.9,6.22905842]
[1723966037640,0.25098,141.95,141.91,6.22905842]
[1723966037844,0.25098,141.95,141.88,9.35]
[1723966038047,0.25098,141.95,141.89,6.22905842]
[1723966038240,0.25098,141.95,141.9,6.22905842]
[1723966038553,0.25098,141.95,141.91,6.22905842]
[1723966038740,0.25098,141.95,141.88,9.35]
[1723966038944,0.25098,141.95,141.89,6.22905842]
[1723966039136,0.25098,141.95,141.88,9.35]
[1723966039137,0.25098,141.95,141.9,6.22905842]
[1723966039336,0.25098,141.95,141.91,6.22905842]
[1723966039540,0.25098,141.95,141.88,9.35]
[1723966039741,0.25098,141.95,141.89,6.22922873]
[1723966039968,0.25098,141.95,141.88,9.35]
[1723966039969,0.25098,141.95,141.9,6.22922873]
[1723966040130,0.25098,141.95,141.91,6.22922873]
[1723966040329,0.25098,141.95,141.88,9.35]
[1723966040533,0.25098,141.95,141.89,6.22915627]
[1723966040746,0.25098,141.95,141.9,6.22915627]
[1723966040939,0.25098,141.95,141.91,6.22915627]
[1723966041251,0.25098,141.95,141.88,9.35]
[1723966041552,0.25098,141.95,141.89,6.22919611]
[1723966041750,21.44098,141.95,141.9,6.22919611]
[1723966041932,0.25098,141.95,141.91,6.22919611]
[1723966042132,0.25098,141.95,141.88,9.35]
[1723966042338,0.25098,141.95,141.89,6.22910135]
[1723966042549,0.25098,141.95,141.9,6.22910135]
[1723966042856,0.25098,141.95,141.91,6.22910135]
[1723966043058,0.25098,141.95,141.88,9.35]
[1723966043254,0.25098,141.95,141.89,6.22919611]
[1723966043443,0.25098,141.95,141.9,6.22919611]
[1723966043639,0.25098,141.95,141.91,6.22919611]
[1723966043841,0.25098,141.95,141.88,9.35]
[1723966044145,0.25098,141.95,141.89,6.22918889]
[1723966044344,0.25098,141.95,141.9,6.22918889]
[1723966044551,0.25098,141.95,141.91,6.22918889]
[1723966044754,0.25098,141.95,141.88,9.35]
[1723966044963,0.25098,141.95,141.89,6.22918889]
[1723966045168,0.25098,141.95,141.9,6.22918889]
[1723966045373,0.25098,141.95,141.91,6.22918889]
[1723966045565,0.25098,141.95,141.88,9.35]
[1723966045951,0.25098,141.95,141.89,6.22906474]
[1723966046146,0.25098,141.95,141.9,6.22906474]
[1723966046464,0.25098,141.95,141.91,6.22906474]
[1723966046656,0.25098,141.95,141.88,9.35]
[1723966046858,0.25098,141.95,141.89,6.22912271]
[1723966047053,0.25098,141.95,141.9,6.22912271]
[1723966047258,0.25098,141.95,141.91,6.22912271]
[1723966047462,0.25098,141.95,141.88,9.35]
[1723966047666,0.25098,141.95,141.89,6.22906474]
[1723966047842,0.25098,141.95,141.9,6.22906474]
[1723966048042,0.25098,141.95,141.91,6.22906474]
[1723966048256,0.25098,141.95,141.88,9.35]
[1723966048456,0.25098,141.95,141.89,6.22905753]
[1723966048767,0.25098,141.95,141.9,6.22905753]
[1723966048964,0.25098,141.95,141.91,6.22905753]
[1723966049158,0.25098,141.95,141.88,9.35]
[1723966049652,0.25098,141.95,141.89,6.22906474]
[1723966049856,0.25098,141.95,141.9,6.22906474]
[1723966050161,0.25098,141.95,141.91,6.22906474]
[1723966050464,0.25098,141.95,141.92,6.22905753]
[1723966050679,0.25098,141.95,141.88,9.35]